[Event "Titled Tuesday Blitz June 1 2021"]
[White "Herrera Reyes, Jose Antonio"]
[Black "Nasyrova, Ekaterina"]
[WhiteFideId "2274914"]
[BlackFideId "44157797"]
[WhiteElo "2370"]
[BlackElo "2115"]
[Result "1-0"]
[Round "07"]
[TimeControl "180+1"]
[Date "2021.06.01"]
[WhiteClock "0:00:24"]
[BlackClock "0:00:01"]

1. Nf3 {[%clk 0:03:00]}  d5 {[%clk 0:02:58]} 2. g3 {[%clk 0:03:01]}  e6 {[%clk 0:02:55]} 3. Bg2 {[%clk 0:03:02]}  Nf6 {[%clk 0:02:54]} 4. O-O {[%clk 0:03:02]}  Bd6 {[%clk 0:02:51]} 5. d3 {[%clk 0:03:00]}  O-O {[%clk 0:02:49]} 6. e4 {[%clk 0:02:59]}  dxe4 {[%clk 0:02:48]} 7. dxe4 {[%clk 0:03:00]}  Nxe4 {[%clk 0:02:44]} 8. Qe2 {[%clk 0:03:00]}  Nf6 {[%clk 0:02:42]} 9. Rd1 {[%clk 0:02:59]}  Nbd7 {[%clk 0:02:41]} 10. Nc3 {[%clk 0:02:58]}  Qe7 {[%clk 0:02:35]} 11. Bg5 {[%clk 0:02:52]}  h6 {[%clk 0:02:33]} 12. Be3 {[%clk 0:02:52]}  Rd8 {[%clk 0:02:31]} 13. Nd4 {[%clk 0:02:51]}  a6 {[%clk 0:02:18]} 14. Re1 {[%clk 0:02:47]}  Qf8 {[%clk 0:02:15]} 15. Rad1 {[%clk 0:02:46]}  Rb8 {[%clk 0:02:09]} 16. a3 {[%clk 0:02:41]}  Nb6 {[%clk 0:02:03]} 17. Nb3 {[%clk 0:02:35]}  Be7 {[%clk 0:01:33]} 18. Rxd8 {[%clk 0:02:29]}  Qxd8 {[%clk 0:01:34]} 19. Rd1 {[%clk 0:02:29]}  Qe8 {[%clk 0:01:28]} 20. Bf4 {[%clk 0:02:21]}  Bd8 {[%clk 0:01:04]} 21. Nc5 {[%clk 0:02:05]}  Nbd7 {[%clk 0:01:03]} 22. Nb3 {[%clk 0:01:49]}  e5 {[%clk 0:01:00]} 23. Re1 {[%clk 0:01:45]}  c6 {[%clk 0:00:38]} 24. Qd2 {[%clk 0:01:15]}  Bc7 {[%clk 0:00:35]} 25. Be3 {[%clk 0:01:15]}  Qf8 {[%clk 0:00:27]} 26. Na4 {[%clk 0:01:05]}  Ng4 {[%clk 0:00:17]} 27. Ba7 {[%clk 0:01:00]}  Ra8 {[%clk 0:00:17]} 28. Bc5 {[%clk 0:00:55]}  Nxc5 {[%clk 0:00:17]} 29. Naxc5 {[%clk 0:00:55]}  Bb6 {[%clk 0:00:11]} 30. Qb4 {[%clk 0:00:54]}  Ba7 {[%clk 0:00:10]} 31. Qc3 {[%clk 0:00:40]}  Bf5 {[%clk 0:00:02]} 32. h3 {[%clk 0:00:39]}  Nf6 {[%clk 0:00:02]} 33. Qxe5 {[%clk 0:00:39]}  Bxc2 {[%clk 0:00:02]} 34. Qc3 {[%clk 0:00:34]}  Bf5 {[%clk 0:00:01]} 35. Nxb7 {[%clk 0:00:30]}  Re8 {[%clk 0:00:02]} 36. Rf1 {[%clk 0:00:28]}  Re6 {[%clk 0:00:01]} 37. N7a5 {[%clk 0:00:26]}  Re2 {[%clk 0:00:01]} 38. Nxc6 {[%clk 0:00:24]}  Bb6 {[%clk 0:00:01]} 39. Nbd4 {[%clk 0:00:24]} 1-0


[Site "https://www.chess.com"]

[Event "Titled Tuesday Blitz June 1 2021"]
[White "Hristodorescu, Daniel"]
[Black "Tokhirjonova, Gulrukhbegim"]
[WhiteFideId "1203100"]
[BlackFideId "14203626"]
[WhiteElo "2175"]
[BlackElo "2236"]
[Result "0-1"]
[Round "07"]
[TimeControl "180+1"]
[Date "2021.06.01"]
[WhiteClock "0:00:20"]
[BlackClock "0:00:13"]

1. e4 {[%clk 0:03:00]}  e5 {[%clk 0:02:59]} 2. Nf3 {[%clk 0:03:00]}  Nc6 {[%clk 0:03:00]} 3. Bb5 {[%clk 0:02:59]}  a6 {[%clk 0:02:59]} 4. Ba4 {[%clk 0:03:00]}  Nf6 {[%clk 0:03:00]} 5. O-O {[%clk 0:03:00]}  Nxe4 {[%clk 0:02:59]} 6. d4 {[%clk 0:02:59]}  b5 {[%clk 0:02:59]} 7. Bb3 {[%clk 0:02:59]}  d5 {[%clk 0:02:59]} 8. dxe5 {[%clk 0:02:58]}  Be6 {[%clk 0:03:00]} 9. Nbd2 {[%clk 0:02:51]}  Be7 {[%clk 0:02:59]} 10. Nxe4 {[%clk 0:02:42]}  dxe4 {[%clk 0:02:58]} 11. Bxe6 {[%clk 0:02:42]}  fxe6 {[%clk 0:02:56]} 12. Nd2 {[%clk 0:02:26]}  Qd5 {[%clk 0:02:52]} 13. Qh5+ {[%clk 0:02:17]}  g6 {[%clk 0:02:51]} 14. Qg4 {[%clk 0:02:17]}  O-O {[%clk 0:02:40]} 15. Qxe4 {[%clk 0:02:08]}  Nxe5 {[%clk 0:02:37]} 16. Re1 {[%clk 0:01:56]}  Bd6 {[%clk 0:02:36]} 17. Nb3 {[%clk 0:01:45]}  Rf5 {[%clk 0:02:22]} 18. f4 {[%clk 0:01:36]}  Nc4 {[%clk 0:02:16]} 19. Qxe6+ {[%clk 0:01:27]}  Qxe6 {[%clk 0:02:17]} 20. Rxe6 {[%clk 0:01:27]}  Raf8 {[%clk 0:02:06]} 21. Nd4 {[%clk 0:01:22]}  Rd5 {[%clk 0:02:04]} 22. Nf3 {[%clk 0:00:43]}  Bc5+ {[%clk 0:01:12]} 23. Kf1 {[%clk 0:00:39]}  g5 {[%clk 0:00:54]} 24. b3 {[%clk 0:00:32]}  Nd6 {[%clk 0:00:47]} 25. Re5 {[%clk 0:00:31]}  Rxe5 {[%clk 0:00:45]} 26. fxe5 {[%clk 0:00:28]}  Ne4 {[%clk 0:00:42]} 27. Ke2 {[%clk 0:00:22]}  g4 {[%clk 0:00:42]} 28. Ng5 {[%clk 0:00:20]}  Rf2+ {[%clk 0:00:33]} 29. Kd3 {[%clk 0:00:20]}  Nxg5 {[%clk 0:00:33]} 30. Bxg5 {[%clk 0:00:20]}  Rxg2 {[%clk 0:00:34]} 31. Bf4 {[%clk 0:00:19]}  Rf2 {[%clk 0:00:30]} 32. Ke4 {[%clk 0:00:19]}  h5 {[%clk 0:00:29]} 33. Bg3 {[%clk 0:00:19]}  Rxc2 {[%clk 0:00:28]} 34. Kd5 {[%clk 0:00:20]}  Bf8 {[%clk 0:00:25]} 35. Rf1 {[%clk 0:00:19]}  Rxa2 {[%clk 0:00:24]} 36. Ke6 {[%clk 0:00:19]}  Re2 {[%clk 0:00:24]} 37. Rf5 {[%clk 0:00:19]}  h4 {[%clk 0:00:21]} 38. Bxh4 {[%clk 0:00:17]}  Rxh2 {[%clk 0:00:20]} 39. Bf6 {[%clk 0:00:18]}  Kh7 {[%clk 0:00:16]} 40. Rg5 {[%clk 0:00:17]}  Rg2 {[%clk 0:00:14]} 41. Kf7 {[%clk 0:00:17]}  Bh6 {[%clk 0:00:14]} 42. Rh5 {[%clk 0:00:17]}  g3 {[%clk 0:00:14]} 43. e6 {[%clk 0:00:17]}  Re2 {[%clk 0:00:14]} 44. e7 {[%clk 0:00:17]}  g2 {[%clk 0:00:14]} 45. Bg5 {[%clk 0:00:18]}  Rf2+ {[%clk 0:00:14]} 46. Ke8 {[%clk 0:00:17]}  Kg6 {[%clk 0:00:14]} 47. Rxh6+ {[%clk 0:00:18]}  Kxg5 {[%clk 0:00:15]} 48. Rh8 {[%clk 0:00:18]}  Kf6 {[%clk 0:00:12]} 49. Rg8 {[%clk 0:00:19]}  Re2 {[%clk 0:00:12]} 50. Rf8+ {[%clk 0:00:19]}  Kg7 {[%clk 0:00:12]} 51. Rg8+ {[%clk 0:00:20]}  Kxg8 {[%clk 0:00:12]} 52. Kd7 {[%clk 0:00:20]}  Rxe7+ {[%clk 0:00:13]} 53. Kxe7 {[%clk 0:00:20]}  g1=Q {[%clk 0:00:13]} 0-1


[Site "https://www.chess.com"]

[Event "Titled Tuesday Blitz June 1 2021"]
[White "Iskusnyh, Sergei"]
[Black "Ishbaev, Alibek"]
[WhiteFideId "4120027"]
[BlackFideId "14205017"]
[WhiteElo "2492"]
[BlackElo "2369"]
[Result "0-1"]
[Round "07"]
[TimeControl "180+1"]
[Date "2021.06.01"]
[WhiteClock "0:00:12"]
[BlackClock "0:00:19"]

1. d4 {[%clk 0:03:00]}  g6 {[%clk 0:02:58]} 2. c4 {[%clk 0:02:57]}  Bg7 {[%clk 0:02:58]} 3. Nf3 {[%clk 0:02:58]}  c5 {[%clk 0:02:58]} 4. d5 {[%clk 0:02:56]}  f5 {[%clk 0:02:58]} 5. g3 {[%clk 0:02:40]}  d6 {[%clk 0:02:54]} 6. Bg2 {[%clk 0:02:40]}  Nf6 {[%clk 0:02:53]} 7. O-O {[%clk 0:02:39]}  O-O {[%clk 0:02:54]} 8. Nc3 {[%clk 0:02:38]}  Na6 {[%clk 0:02:51]} 9. Re1 {[%clk 0:02:16]}  Rb8 {[%clk 0:02:44]} 10. e4 {[%clk 0:02:12]}  fxe4 {[%clk 0:02:43]} 11. Nxe4 {[%clk 0:02:12]}  Nxe4 {[%clk 0:02:43]} 12. Rxe4 {[%clk 0:02:11]}  Bf5 {[%clk 0:02:43]} 13. Re2 {[%clk 0:01:58]}  b5 {[%clk 0:02:43]} 14. Bg5 {[%clk 0:01:56]}  Bf6 {[%clk 0:02:41]} 15. Bxf6 {[%clk 0:01:52]}  exf6 {[%clk 0:02:42]} 16. Nh4 {[%clk 0:01:43]}  Bg4 {[%clk 0:02:34]} 17. Bf3 {[%clk 0:01:25]}  Bxf3 {[%clk 0:02:28]} 18. Nxf3 {[%clk 0:01:26]}  bxc4 {[%clk 0:02:28]} 19. Qc2 {[%clk 0:01:23]}  Re8 {[%clk 0:02:23]} 20. Rae1 {[%clk 0:01:21]}  Rxe2 {[%clk 0:02:17]} 21. Rxe2 {[%clk 0:01:18]}  Nc7 {[%clk 0:02:15]} 22. Qxc4 {[%clk 0:01:10]}  Qd7 {[%clk 0:02:11]} 23. Qc3 {[%clk 0:01:01]}  Kf7 {[%clk 0:02:05]} 24. b3 {[%clk 0:00:51]}  Re8 {[%clk 0:02:03]} 25. Rxe8 {[%clk 0:00:45]}  Qxe8 {[%clk 0:02:04]} 26. Qa5 {[%clk 0:00:42]}  Nxd5 {[%clk 0:02:01]} 27. Qxa7+ {[%clk 0:00:42]}  Qe7 {[%clk 0:02:01]} 28. Qa8 {[%clk 0:00:38]}  Nc7 {[%clk 0:01:49]} 29. Qh8 {[%clk 0:00:34]}  Ke6 {[%clk 0:01:41]} 30. Qg8+ {[%clk 0:00:32]}  Kd7 {[%clk 0:01:33]} 31. h4 {[%clk 0:00:32]}  Nb5 {[%clk 0:01:25]} 32. Qc4 {[%clk 0:00:32]}  Nc7 {[%clk 0:01:15]} 33. a4 {[%clk 0:00:31]}  Qe6 {[%clk 0:01:15]} 34. Qc1 {[%clk 0:00:28]}  Qe4 {[%clk 0:01:12]} 35. Qd1 {[%clk 0:00:29]}  Nd5 {[%clk 0:01:08]} 36. a5 {[%clk 0:00:28]}  Nc3 {[%clk 0:01:08]} 37. Nd2 {[%clk 0:00:20]}  Qd3 {[%clk 0:00:30]} 38. Qe1 {[%clk 0:00:20]}  Ne2+ {[%clk 0:00:29]} 39. Kh2 {[%clk 0:00:20]}  Nd4 {[%clk 0:00:28]} 40. Qe3 {[%clk 0:00:19]}  Qxd2 {[%clk 0:00:27]} 41. Qe4 {[%clk 0:00:13]}  Qxf2+ {[%clk 0:00:26]} 42. Kh3 {[%clk 0:00:13]}  Qf1+ {[%clk 0:00:24]} 43. Kh2 {[%clk 0:00:13]}  Qf2+ {[%clk 0:00:23]} 44. Kh3 {[%clk 0:00:12]}  Qf5+ {[%clk 0:00:23]} 45. Qxf5+ {[%clk 0:00:12]}  Nxf5 {[%clk 0:00:24]} 46. a6 {[%clk 0:00:11]}  Kc6 {[%clk 0:00:23]} 47. g4 {[%clk 0:00:11]}  Nd4 {[%clk 0:00:21]} 48. Kg3 {[%clk 0:00:11]}  Nxb3 {[%clk 0:00:20]} 49. g5 {[%clk 0:00:12]}  fxg5 {[%clk 0:00:19]} 0-1


[Site "https://www.chess.com"]

[Event "Titled Tuesday Blitz June 1 2021"]
[White "Janaszak, Dawid"]
[Black "Dzhaparov, Medet"]
[WhiteFideId "1119206"]
[BlackFideId "13803689"]
[WhiteElo "2332"]
[BlackElo "1702"]
[Result "0-1"]
[Round "07"]
[TimeControl "180+1"]
[Date "2021.06.01"]
[WhiteClock "0:00:02"]
[BlackClock "0:00:03"]

1. d4 {[%clk 0:03:00]}  Nf6 {[%clk 0:02:54]} 2. Nf3 {[%clk 0:03:00]}  g6 {[%clk 0:02:54]} 3. Bf4 {[%clk 0:03:00]}  Bg7 {[%clk 0:02:53]} 4. Nc3 {[%clk 0:03:00]}  d5 {[%clk 0:02:51]} 5. Nb5 {[%clk 0:02:59]}  Na6 {[%clk 0:02:49]} 6. a4 {[%clk 0:02:57]}  O-O {[%clk 0:02:45]} 7. c3 {[%clk 0:02:55]}  c6 {[%clk 0:02:36]} 8. Na3 {[%clk 0:02:55]}  Qb6 {[%clk 0:02:28]} 9. Qc1 {[%clk 0:02:45]}  Bf5 {[%clk 0:02:15]} 10. h3 {[%clk 0:02:37]}  Nd7 {[%clk 0:01:58]} 11. e3 {[%clk 0:02:26]}  e5 {[%clk 0:01:55]} 12. Bh2 {[%clk 0:02:18]}  Rfe8 {[%clk 0:01:32]} 13. a5 {[%clk 0:02:03]}  Qxa5 {[%clk 0:01:20]} 14. Nb5 {[%clk 0:01:50]}  Qb6 {[%clk 0:01:14]} 15. Nd6 {[%clk 0:01:50]}  exd4 {[%clk 0:01:12]} 16. Nxf5 {[%clk 0:01:39]}  gxf5 {[%clk 0:01:09]} 17. Bxa6 {[%clk 0:01:39]}  dxe3 {[%clk 0:00:52]} 18. Bd3 {[%clk 0:01:28]}  Nc5 {[%clk 0:00:40]} 19. Bxf5 {[%clk 0:00:55]}  Nb3 {[%clk 0:00:36]} 20. Qb1 {[%clk 0:00:53]}  exf2+ {[%clk 0:00:25]} 21. Kd1 {[%clk 0:00:46]}  Qe3 {[%clk 0:00:15]} 22. Qd3 {[%clk 0:00:22]}  Qxd3+ {[%clk 0:00:10]} 23. Bxd3 {[%clk 0:00:22]}  Nxa1 {[%clk 0:00:10]} 24. Bg3 {[%clk 0:00:20]}  Nb3 {[%clk 0:00:08]} 25. Bxf2 {[%clk 0:00:20]}  a5 {[%clk 0:00:08]} 26. Kc2 {[%clk 0:00:20]}  a4 {[%clk 0:00:08]} 27. Rf1 {[%clk 0:00:18]}  b5 {[%clk 0:00:07]} 28. Nh4 {[%clk 0:00:15]}  Na5 {[%clk 0:00:07]} 29. Nf5 {[%clk 0:00:15]}  Nc4 {[%clk 0:00:05]} 30. Bc5 {[%clk 0:00:15]}  a3 {[%clk 0:00:04]} 31. b3 {[%clk 0:00:15]}  Ne5 {[%clk 0:00:04]} 32. Nd6 {[%clk 0:00:13]}  Nxd3 {[%clk 0:00:03]} 33. Kxd3 {[%clk 0:00:13]}  Re6 {[%clk 0:00:02]} 34. Ra1 {[%clk 0:00:05]}  Bf8 {[%clk 0:00:01]} 35. Nb7 {[%clk 0:00:05]}  Bxc5 {[%clk 0:00:02]} 36. Nxc5 {[%clk 0:00:06]}  Rf6 {[%clk 0:00:02]} 37. b4 {[%clk 0:00:06]}  Rg6 {[%clk 0:00:02]} 38. g4 {[%clk 0:00:05]}  h5 {[%clk 0:00:02]} 39. gxh5 {[%clk 0:00:04]}  Rg3+ {[%clk 0:00:03]} 40. Kd4 {[%clk 0:00:04]}  Rxh3 {[%clk 0:00:04]} 41. Nd7 {[%clk 0:00:05]}  Rh4+ {[%clk 0:00:04]} 42. Ke5 {[%clk 0:00:04]}  Rxh5+ {[%clk 0:00:04]} 43. Kd6 {[%clk 0:00:04]}  Kh8 {[%clk 0:00:04]} 44. Kxc6 {[%clk 0:00:04]}  a2 {[%clk 0:00:04]} 45. Kb7 {[%clk 0:00:04]}  Ra3 {[%clk 0:00:04]} 46. Nf6 {[%clk 0:00:02]}  Rf5 {[%clk 0:00:03]} 47. Rh1+ {[%clk 0:00:02]}  Kg7 {[%clk 0:00:03]} 48. Ne8+ {[%clk 0:00:03]}  Kf8 {[%clk 0:00:03]} 49. Nd6 {[%clk 0:00:04]}  Rf6 {[%clk 0:00:03]} 50. Nc8 {[%clk 0:00:04]}  a1=Q {[%clk 0:00:02]} 51. Rh8+ {[%clk 0:00:03]}  Kg7 {[%clk 0:00:02]} 52. Rd8 {[%clk 0:00:04]}  Kg6 {[%clk 0:00:02]} 53. Nd6 {[%clk 0:00:05]}  Kg5 {[%clk 0:00:02]} 54. Rg8+ {[%clk 0:00:05]}  Kf4 {[%clk 0:00:02]} 55. Rh8 {[%clk 0:00:03]}  Rxd6 {[%clk 0:00:02]} 56. Rh4+ {[%clk 0:00:02]}  Ke5 {[%clk 0:00:02]} 57. Rh5+ {[%clk 0:00:02]}  f5 {[%clk 0:00:03]} 58. Rh7 {[%clk 0:00:02]}  Ra7+ {[%clk 0:00:03]} 0-1


[Site "https://www.chess.com"]

[Event "Titled Tuesday Blitz June 1 2021"]
[White "Kamsky, Gata"]
[Black "Willow, Jonah B"]
[WhiteFideId "2000024"]
[BlackFideId "438804"]
[WhiteElo "2644"]
[BlackElo "2261"]
[Result "1-0"]
[Round "07"]
[TimeControl "180+1"]
[Date "2021.06.01"]
[WhiteClock "0:00:56"]
[BlackClock "0:01:01"]

1. d4 {[%clk 0:03:00]}  Nf6 {[%clk 0:03:00]} 2. Nf3 {[%clk 0:03:00]}  e6 {[%clk 0:03:00]} 3. Bf4 {[%clk 0:02:59]}  c5 {[%clk 0:02:59]} 4. e3 {[%clk 0:02:59]}  cxd4 {[%clk 0:02:58]} 5. exd4 {[%clk 0:02:58]}  b6 {[%clk 0:02:58]} 6. Nbd2 {[%clk 0:02:57]}  Bb7 {[%clk 0:02:58]} 7. a4 {[%clk 0:02:56]}  a6 {[%clk 0:02:54]} 8. h3 {[%clk 0:02:56]}  Be7 {[%clk 0:02:54]} 9. Bd3 {[%clk 0:02:56]}  O-O {[%clk 0:02:54]} 10. O-O {[%clk 0:02:56]}  d6 {[%clk 0:02:54]} 11. Bh2 {[%clk 0:02:56]}  Re8 {[%clk 0:02:53]} 12. Re1 {[%clk 0:02:56]}  Bf8 {[%clk 0:02:53]} 13. Nc4 {[%clk 0:02:28]}  Nd5 {[%clk 0:02:28]} 14. c3 {[%clk 0:02:24]}  Qc7 {[%clk 0:02:24]} 15. Qb3 {[%clk 0:02:16]}  Nd7 {[%clk 0:02:20]} 16. Rad1 {[%clk 0:01:40]}  g6 {[%clk 0:02:15]} 17. Bf1 {[%clk 0:01:38]}  Rec8 {[%clk 0:02:07]} 18. Ng5 {[%clk 0:01:34]}  N5f6 {[%clk 0:01:59]} 19. Nd2 {[%clk 0:01:26]}  Bd5 {[%clk 0:01:50]} 20. c4 {[%clk 0:01:25]}  Bb7 {[%clk 0:01:49]} 21. Qe3 {[%clk 0:01:23]}  Re8 {[%clk 0:01:43]} 22. b4 {[%clk 0:01:22]}  Qc6 {[%clk 0:01:39]} 23. Qb3 {[%clk 0:01:12]}  b5 {[%clk 0:01:35]} 24. cxb5 {[%clk 0:01:09]}  axb5 {[%clk 0:01:36]} 25. axb5 {[%clk 0:01:05]}  Qd5 {[%clk 0:01:31]} 26. Qxd5 {[%clk 0:01:05]}  Bxd5 {[%clk 0:01:19]} 27. Nge4 {[%clk 0:01:04]}  Nxe4 {[%clk 0:01:14]} 28. Nxe4 {[%clk 0:01:04]}  Bxe4 {[%clk 0:01:13]} 29. Rxe4 {[%clk 0:01:04]}  d5 {[%clk 0:01:14]} 30. Re3 {[%clk 0:01:03]}  Bxb4 {[%clk 0:01:14]} 31. Rb3 {[%clk 0:00:59]}  Ra4 {[%clk 0:01:09]} 32. Bc7 {[%clk 0:00:57]}  Rc8 {[%clk 0:01:01]} 33. b6 {[%clk 0:00:57]}  Ba5 {[%clk 0:01:01]} 34. Bb5 {[%clk 0:00:56]} 1-0


[Site "https://www.chess.com"]

[Event "Titled Tuesday Blitz June 1 2021"]
[White "Khusnutdinov, Rustam"]
[Black "Woodward, Andy"]
[WhiteFideId "13701703"]
[BlackFideId "30953499"]
[WhiteElo "2814"]
[BlackElo "2602"]
[Result "0-1"]
[Round "07"]
[TimeControl "180+1"]
[Date "2021.06.01"]
[WhiteClock "0:00:54"]
[BlackClock "0:01:55"]

1. d4 {[%clk 0:03:00]}  Nf6 {[%clk 0:02:59]} 2. c3 {[%clk 0:02:59]}  d5 {[%clk 0:02:59]} 3. Bf4 {[%clk 0:02:59]}  c5 {[%clk 0:02:57]} 4. e3 {[%clk 0:02:59]}  Nc6 {[%clk 0:02:58]} 5. Nd2 {[%clk 0:02:59]}  Bf5 {[%clk 0:02:58]} 6. Ngf3 {[%clk 0:02:59]}  e6 {[%clk 0:02:56]} 7. Qb3 {[%clk 0:02:41]}  Qc8 {[%clk 0:02:47]} 8. Nh4 {[%clk 0:02:36]}  c4 {[%clk 0:02:45]} 9. Qd1 {[%clk 0:02:33]}  b5 {[%clk 0:02:39]} 10. Be2 {[%clk 0:02:07]}  Be7 {[%clk 0:02:34]} 11. O-O {[%clk 0:01:44]}  O-O {[%clk 0:02:26]} 12. Re1 {[%clk 0:01:39]}  a5 {[%clk 0:02:22]} 13. Nxf5 {[%clk 0:01:31]}  exf5 {[%clk 0:02:22]} 14. Bg5 {[%clk 0:01:32]}  b4 {[%clk 0:02:19]} 15. Bxf6 {[%clk 0:01:31]}  Bxf6 {[%clk 0:02:19]} 16. Bf3 {[%clk 0:01:32]}  Rd8 {[%clk 0:02:17]} 17. Qa4 {[%clk 0:01:31]}  Ne7 {[%clk 0:02:08]} 18. Rec1 {[%clk 0:01:29]}  Qb7 {[%clk 0:02:06]} 19. b3 {[%clk 0:01:29]}  bxc3 {[%clk 0:02:05]} 20. Rxc3 {[%clk 0:01:28]}  Qb4 {[%clk 0:02:04]} 21. Rcc1 {[%clk 0:01:04]}  Qxd2 {[%clk 0:02:03]} 22. bxc4 {[%clk 0:01:02]}  f4 {[%clk 0:02:02]} 23. Rd1 {[%clk 0:00:55]}  Qb4 {[%clk 0:02:01]} 24. Qxb4 {[%clk 0:00:55]}  axb4 {[%clk 0:02:01]} 25. exf4 {[%clk 0:00:56]}  dxc4 {[%clk 0:01:55]} 26. Bxa8 {[%clk 0:00:54]}  Rxa8 {[%clk 0:01:56]} 27. Rab1 {[%clk 0:00:54]}  Nd5 {[%clk 0:01:55]} 0-1


[Site "https://www.chess.com"]

[Event "Titled Tuesday Blitz June 1 2021"]
[White "Loy, Konstantin"]
[Black "Hebden, Mark L"]
[WhiteFideId "14122499"]
[BlackFideId "400084"]
[WhiteElo "2084"]
[BlackElo "2457"]
[Result "0-1"]
[Round "07"]
[TimeControl "180+1"]
[Date "2021.06.01"]
[WhiteClock "0:00:07"]
[BlackClock "0:01:19"]

1. e4 {[%clk 0:03:00]}  e5 {[%clk 0:02:58]} 2. Nf3 {[%clk 0:03:00]}  Nc6 {[%clk 0:02:58]} 3. d4 {[%clk 0:03:00]}  exd4 {[%clk 0:02:57]} 4. Nxd4 {[%clk 0:03:01]}  Nf6 {[%clk 0:02:57]} 5. Nxc6 {[%clk 0:03:01]}  bxc6 {[%clk 0:02:56]} 6. Bd3 {[%clk 0:03:01]}  d5 {[%clk 0:02:55]} 7. e5 {[%clk 0:03:01]}  Ng4 {[%clk 0:02:52]} 8. O-O {[%clk 0:03:02]}  Bc5 {[%clk 0:02:49]} 9. Qe2 {[%clk 0:03:00]}  Qe7 {[%clk 0:02:41]} 10. Bf4 {[%clk 0:02:59]}  g5 {[%clk 0:02:40]} 11. Bd2 {[%clk 0:02:58]}  Nxe5 {[%clk 0:02:35]} 12. Re1 {[%clk 0:02:58]}  f6 {[%clk 0:02:30]} 13. Bxg5 {[%clk 0:02:54]}  fxg5 {[%clk 0:02:21]} 14. Qxe5 {[%clk 0:02:54]}  Qxe5 {[%clk 0:02:08]} 15. Rxe5+ {[%clk 0:02:55]}  Kd7 {[%clk 0:02:04]} 16. Rxg5 {[%clk 0:02:52]}  Rb8 {[%clk 0:02:03]} 17. Nc3 {[%clk 0:02:12]}  Kd6 {[%clk 0:01:59]} 18. Rh5 {[%clk 0:01:47]}  h6 {[%clk 0:01:55]} 19. Rh4 {[%clk 0:01:26]}  Rxb2 {[%clk 0:01:50]} 20. Na4 {[%clk 0:01:18]}  Rb4 {[%clk 0:01:49]} 21. Rxb4 {[%clk 0:01:06]}  Bxb4 {[%clk 0:01:49]} 22. Rb1 {[%clk 0:01:05]}  Ba5 {[%clk 0:01:43]} 23. Rb8 {[%clk 0:01:02]}  Re8 {[%clk 0:01:42]} 24. g3 {[%clk 0:00:49]}  Bd7 {[%clk 0:01:38]} 25. Rxe8 {[%clk 0:00:48]}  Bxe8 {[%clk 0:01:39]} 26. f4 {[%clk 0:00:36]}  c5 {[%clk 0:01:38]} 27. Nb2 {[%clk 0:00:36]}  Bc3 {[%clk 0:01:38]} 28. Nd1 {[%clk 0:00:33]}  Bd4+ {[%clk 0:01:37]} 29. Kg2 {[%clk 0:00:34]}  c4 {[%clk 0:01:38]} 30. Be2 {[%clk 0:00:32]}  c3 {[%clk 0:01:36]} 31. g4 {[%clk 0:00:24]}  c5 {[%clk 0:01:33]} 32. h4 {[%clk 0:00:22]}  c4 {[%clk 0:01:30]} 33. f5 {[%clk 0:00:20]}  Ke5 {[%clk 0:01:27]} 34. Kf3 {[%clk 0:00:15]}  Ba4 {[%clk 0:01:24]} 35. Ne3 {[%clk 0:00:11]}  Bxe3 {[%clk 0:01:23]} 36. Kxe3 {[%clk 0:00:12]}  Bxc2 {[%clk 0:01:22]} 37. a3 {[%clk 0:00:07]}  d4+ {[%clk 0:01:20]} 38. Kf3 {[%clk 0:00:07]}  d3 {[%clk 0:01:19]} 0-1


[Site "https://www.chess.com"]

[Event "Titled Tuesday Blitz June 1 2021"]
[White "Lysyj, Igor"]
[Black "Yurovskykh, Oleksandr"]
[WhiteFideId "4150120"]
[BlackFideId "14134020"]
[WhiteElo "2762"]
[BlackElo "2571"]
[Result "1-0"]
[Round "07"]
[TimeControl "180+1"]
[Date "2021.06.01"]
[WhiteClock "0:00:42"]
[BlackClock "0:00:20"]

1. d4 {[%clk 0:02:59]}  d5 {[%clk 0:03:00]} 2. c4 {[%clk 0:02:59]}  dxc4 {[%clk 0:03:01]} 3. e3 {[%clk 0:02:57]}  Nf6 {[%clk 0:03:01]} 4. Bxc4 {[%clk 0:02:57]}  e6 {[%clk 0:03:01]} 5. Nf3 {[%clk 0:02:57]}  c5 {[%clk 0:03:00]} 6. O-O {[%clk 0:02:57]}  Nc6 {[%clk 0:03:00]} 7. a3 {[%clk 0:02:56]}  cxd4 {[%clk 0:02:55]} 8. exd4 {[%clk 0:02:55]}  Be7 {[%clk 0:02:55]} 9. Nc3 {[%clk 0:02:55]}  O-O {[%clk 0:02:54]} 10. Re1 {[%clk 0:02:54]}  b6 {[%clk 0:02:54]} 11. Bf4 {[%clk 0:02:53]}  Bb7 {[%clk 0:02:53]} 12. Ba2 {[%clk 0:02:52]}  Rc8 {[%clk 0:02:49]} 13. Qd3 {[%clk 0:02:51]}  Bd6 {[%clk 0:02:29]} 14. Bg5 {[%clk 0:02:50]}  h6 {[%clk 0:02:29]} 15. Bh4 {[%clk 0:02:49]}  g5 {[%clk 0:02:28]} 16. Bg3 {[%clk 0:02:48]}  Bxg3 {[%clk 0:02:28]} 17. hxg3 {[%clk 0:02:48]}  Ne7 {[%clk 0:02:28]} 18. Rad1 {[%clk 0:02:36]}  Ned5 {[%clk 0:02:25]} 19. Ne5 {[%clk 0:02:29]}  Nxc3 {[%clk 0:02:19]} 20. bxc3 {[%clk 0:02:29]}  Qc7 {[%clk 0:02:19]} 21. c4 {[%clk 0:02:27]}  Rfd8 {[%clk 0:02:14]} 22. Bb1 {[%clk 0:02:21]}  Rd6 {[%clk 0:01:42]} 23. f4 {[%clk 0:02:17]}  Rcd8 {[%clk 0:01:38]} 24. Qe3 {[%clk 0:02:11]}  g4 {[%clk 0:01:27]} 25. f5 {[%clk 0:02:07]}  Kg7 {[%clk 0:01:25]} 26. Qf4 {[%clk 0:01:52]}  Ba8 {[%clk 0:01:00]} 27. Nxg4 {[%clk 0:01:40]}  Ng8 {[%clk 0:00:58]} 28. f6+ {[%clk 0:01:38]}  Kf8 {[%clk 0:00:56]} 29. Nxh6 {[%clk 0:01:35]}  Qxc4 {[%clk 0:00:28]} 30. Nxg8 {[%clk 0:01:18]}  Rxd4 {[%clk 0:00:28]} 31. Rxd4 {[%clk 0:01:02]}  Qxd4+ {[%clk 0:00:29]} 32. Qxd4 {[%clk 0:01:01]}  Rxd4 {[%clk 0:00:30]} 33. Ne7 {[%clk 0:00:55]}  Bb7 {[%clk 0:00:28]} 34. Rc1 {[%clk 0:00:54]}  Ke8 {[%clk 0:00:27]} 35. Rc7 {[%clk 0:00:52]}  Rd7 {[%clk 0:00:22]} 36. Rxd7 {[%clk 0:00:50]}  Kxd7 {[%clk 0:00:23]} 37. g4 {[%clk 0:00:50]}  b5 {[%clk 0:00:22]} 38. g5 {[%clk 0:00:50]}  a5 {[%clk 0:00:23]} 39. g6 {[%clk 0:00:49]}  fxg6 {[%clk 0:00:23]} 40. Nxg6 {[%clk 0:00:49]}  Ke8 {[%clk 0:00:24]} 41. Ne5 {[%clk 0:00:49]}  b4 {[%clk 0:00:24]} 42. axb4 {[%clk 0:00:47]}  axb4 {[%clk 0:00:25]} 43. g4 {[%clk 0:00:43]}  b3 {[%clk 0:00:24]} 44. g5 {[%clk 0:00:43]}  b2 {[%clk 0:00:19]} 45. g6 {[%clk 0:00:42]}  Be4 {[%clk 0:00:20]} 1-0


[Site "https://www.chess.com"]